[Event "CCT Chessable Masters Play-In 2025"]
[Site "Online"]
[Date "2025.02.17"]
[Round "3.55"]
[White "Banusz, Tamas"]
[Black "Sokolovsky, Yahli"]
[Result "1/2-1/2"]
[ECO "D11"]
[WhiteElo "2582"]
[BlackElo "2552"]
[PlyCount "107"]
[EventDate "2025.02.13"]
[EventType "swiss"]
[EventCountry "NET"]
[TimeControl "600"]
[WhiteClock "0:01:42"]
[BlackClock "0:00:51"]

1. d4 {[%emt 0:00:01]} d5 {[%emt 0:00:07]} 2. Nf3 {[%emt 0:00:01]} c6 {[%emt 0:00:05]} 3. g3 {[%emt 0:00:02]} Bf5 {[%emt 0:00:03]} 4. Bg2 {[%emt 0:00:02]} e6 {[%emt 0:00:02]} 5. c4 {[%emt 0:00:01]} Nf6 {[%emt 0:00:03]} 6. Nc3 {[%emt 0:00:01]} Bd6 {[%emt 0:00:06]} 7. Qb3 {[%emt 0:00:02]} Qc8 {[%emt 0:01:37]} 8. O-O {[%emt 0:00:12]} Nbd7 {[%emt 0:00:02]} 9. Nd2 {[%emt 0:00:10]} O-O {[%emt 0:00:10]} 10. e4 {[%emt 0:00:01]} dxe4 {[%emt 0:00:01]} 11. Ndxe4 {[%emt 0:00:01]} Nxe4 {[%emt 0:00:02]} 12. Nxe4 {[%emt 0:00:01]} Bxe4 {[%emt 0:00:11]} 13. Bxe4 {[%emt 0:00:00]} e5 {[%emt 0:00:09]} 14. dxe5 {[%emt 0:01:31]} Nxe5 {[%emt 0:00:08]} 15. Rd1 {[%emt 0:00:11]} Bc5 {[%emt 0:00:10]} 16. Be3 {[%emt 0:00:59]} Bxe3 {[%emt 0:00:11]} 17. Qxe3 {[%emt 0:00:00]} Qe6 {[%emt 0:00:30]} 18. b3 {[%emt 0:00:04]} Ng4 {[%emt 0:00:08]} 19. Qf4 {[%emt 0:00:09]} f5 {[%emt 0:00:27]} 20. Bf3 {[%emt 0:00:06]} Rae8 {[%emt 0:00:08]} 21. Rd6 {[%emt 0:00:23]} Qe5 {[%emt 0:00:09]} 22. Rad1 {[%emt 0:00:27]} Qxf4 {[%emt 0:00:08]} 23. gxf4 {[%emt 0:00:00]} Nf6 {[%emt 0:01:18]} 24. b4 {[%emt 0:00:05]} Re7 {[%emt 0:00:03]} 25. a4 {[%emt 0:00:06]} Rfe8 {[%emt 0:00:13]} 26. a5 {[%emt 0:00:24]} a6 {[%emt 0:00:03]} 27. b5 {[%emt 0:00:10]} axb5 {[%emt 0:00:01]} 28. cxb5 {[%emt 0:00:01]} cxb5 {[%emt 0:00:01]} 29. Rb6 {[%emt 0:00:02]} Ne4 {[%emt 0:00:09]} 30. Rd5 {[%emt 0:00:11]} g6 {[%emt 0:01:26]} 31. Rdxb5 {[%emt 0:00:07]} Ra8 {[%emt 0:00:01]} 32. Kg2 {[%emt 0:00:10]} Ra7 {[%emt 0:00:03]} 33. Be2 {[%emt 0:00:08]} Kg7 {[%emt 0:00:03]} 34. Bc4 {[%emt 0:00:14]} Nf6 {[%emt 0:00:11]} 35. Kf3 {[%emt 0:00:10]} Rc7 {[%emt 0:00:06]} 36. Be6 {[%emt 0:00:18]} Rc3+ {[%emt 0:00:06]} 37. Ke2 {[%emt 0:00:17]} Rc7 {[%emt 0:00:11]} 38. Bd5 {[%emt 0:00:13]} Nxd5 {[%emt 0:00:08]} 39. Rxd5 {[%emt 0:00:00]} Rc2+ {[%emt 0:00:03]} 40. Kf3 {[%emt 0:00:10]} Ra2 {[%emt 0:00:00]} 41. Rbb5 {[%emt 0:00:07]} Ra3+ {[%emt 0:00:04]} 42. Ke2 {[%emt 0:00:03]} Ra4 {[%emt 0:00:05]} 43. Kf3 {[%emt 0:00:04]} Ra3+ {[%emt 0:00:01]} 44. Kg2 {[%emt 0:00:00]} Ra4 {[%emt 0:00:01]} 45. Kg3 {[%emt 0:00:01]} Ra3+ {[%emt 0:00:00]} 46. f3 {[%emt 0:00:01]} Ra1 {[%emt 0:00:03]} 47. h4 {[%emt 0:00:03]} Kh6 {[%emt 0:00:02]} 48. Re5 {[%emt 0:00:07]} Kh5 {[%emt 0:00:03]} 49. Re7 {[%emt 0:00:08]} h6 {[%emt 0:00:00]} 50. Ree5 {[%emt 0:00:06]} Rg1+ {[%emt 0:00:04]} 51. Kh2 {[%emt 0:00:08]} Ra1 {[%emt 0:00:00]} 52. Kg3 {[%emt 0:00:08]} Rg1+ {[%emt 0:00:01]} 53. Kf2 {[%emt 0:00:10]} Ra1 {[%emt 0:00:02]} 54. Kg3 {[%emt 0:00:01]} 1/2-1/2

[Event "CCT Chessable Masters Play-In 2025"]
[Site "Online"]
[Date "2025.02.17"]
[Round "3.56"]
[White "Bilguun, Sumiya"]
[Black "Ponomariov, Ruslan"]
[Result "0-1"]
[ECO "C01"]
[WhiteElo "2460"]
[BlackElo "2628"]
[PlyCount "74"]
[EventDate "2025.02.13"]
[EventType "swiss"]
[EventCountry "NET"]
[TimeControl "600"]
[WhiteClock "0:00:11"]
[BlackClock "0:01:38"]

1. e4 {[%emt 0:01:03]} e6 {[%emt 0:00:08]} 2. d4 {[%emt 0:00:07]} d5 {[%emt 0:00:01]} 3. Bd3 {[%emt 0:00:02]} dxe4 {[%emt 0:00:15]} 4. Bxe4 {[%emt 0:00:01]} Nf6 {[%emt 0:00:01]} 5. Bf3 {[%emt 0:00:02]} c5 {[%emt 0:00:07]} 6. Ne2 {[%emt 0:00:01]} Nc6 {[%emt 0:00:01]} 7. Be3 {[%emt 0:00:01]} Nd5 {[%emt 0:00:19]} 8. Bxd5 {[%emt 0:00:35]} Qxd5 {[%emt 0:00:27]} 9. Nf4 {[%emt 0:00:12]} Qf5 {[%emt 0:00:02]} 10. dxc5 {[%emt 0:00:13]} Bxc5 {[%emt 0:00:09]} 11. Bxc5 {[%emt 0:00:01]} Qxc5 {[%emt 0:00:05]} 12. Nd3 {[%emt 0:00:10]} Qf5 {[%emt 0:00:25]} 13. Nc3 {[%emt 0:00:05]} O-O {[%emt 0:00:03]} 14. Qe2 {[%emt 0:00:01]} Nd4 {[%emt 0:00:04]} 15. Qd2 {[%emt 0:00:08]} b6 {[%emt 0:00:14]} 16. O-O-O {[%emt 0:00:10]} Bb7 {[%emt 0:00:04]} 17. f3 {[%emt 0:00:02]} Rac8 {[%emt 0:00:04]} 18. Rhe1 {[%emt 0:00:02]} Rfd8 {[%emt 0:00:09]} 19. Kb1 {[%emt 0:00:14]} f6 {[%emt 0:00:22]} 20. Nf2 {[%emt 0:00:57]} e5 {[%emt 0:00:10]} 21. Nfe4 {[%emt 0:00:02]} b5 {[%emt 0:00:36]} 22. Nxb5 {[%emt 0:00:36]} Nxb5 {[%emt 0:00:05]} 23. Qxd8+ {[%emt 0:00:02]} Rxd8 {[%emt 0:00:01]} 24. Rxd8+ {[%emt 0:00:01]} Kf7 {[%emt 0:00:01]} 25. Ng3 {[%emt 0:03:06]} Qe6 {[%emt 0:00:03]} 26. a4 {[%emt 0:00:09]} Nc3+ {[%emt 0:00:06]} 27. Kc1 {[%emt 0:00:01]} Nxa4 {[%emt 0:00:14]} 28. Red1 {[%emt 0:00:08]} Qb6 {[%emt 0:00:31]} 29. b3 {[%emt 0:00:23]} Nc5 {[%emt 0:00:37]} 30. Nf5 {[%emt 0:00:04]} Kg6 {[%emt 0:02:04]} 31. Ne7+ {[%emt 0:00:10]} Kg5 {[%emt 0:00:13]} 32. R8d6 {[%emt 0:00:17]} Qc7 {[%emt 0:00:10]} 33. h4+ {[%emt 0:00:04]} Kxh4 {[%emt 0:00:10]} 34. Nf5+ {[%emt 0:00:03]} Kg5 {[%emt 0:00:01]} 35. g4 {[%emt 0:00:22]} Bxf3 {[%emt 0:00:05]} 36. Rf1 {[%emt 0:00:07]} Bxg4 {[%emt 0:00:08]} 37. Nh6 {[%emt 0:00:07]} Kxh6 {[%emt 0:00:07]} 0-1

[Event "CCT Chessable Masters Play-In 2025"]
[Site "Online"]
[Date "2025.02.17"]
[Round "3.57"]
[White "Azarov, Sergei"]
[Black "Rozum, Ivan"]
[Result "0-1"]
[ECO "B99"]
[WhiteElo "2596"]
[BlackElo "2443"]
[PlyCount "108"]
[EventDate "2025.02.13"]
[EventType "swiss"]
[EventCountry "NET"]
[TimeControl "600"]
[WhiteClock "0:00:24"]
[BlackClock "0:00:51"]

1. e4 {[%emt 0:00:01]} c5 {[%emt 0:00:03]} 2. Nf3 {[%emt 0:00:03]} d6 {[%emt 0:00:02]} 3. d4 {[%emt 0:00:01]} cxd4 {[%emt 0:00:01]} 4. Nxd4 {[%emt 0:00:00]} Nf6 {[%emt 0:00:01]} 5. Nc3 {[%emt 0:00:01]} a6 {[%emt 0:00:01]} 6. Bg5 {[%emt 0:00:00]} e6 {[%emt 0:00:04]} 7. f4 {[%emt 0:00:02]} Be7 {[%emt 0:00:02]} 8. Qf3 {[%emt 0:00:02]} Qc7 {[%emt 0:00:01]} 9. O-O-O {[%emt 0:00:01]} Nbd7 {[%emt 0:00:02]} 10. Bd3 {[%emt 0:00:01]} b5 {[%emt 0:00:08]} 11. Rhe1 {[%emt 0:00:02]} Bb7 {[%emt 0:00:04]} 12. f5 {[%emt 0:00:53]} e5 {[%emt 0:00:10]} 13. Bxf6 {[%emt 0:00:04]} Nxf6 {[%emt 0:00:16]} 14. Nb3 {[%emt 0:00:15]} O-O {[%emt 0:00:19]} 15. g4 {[%emt 0:00:19]} b4 {[%emt 0:00:01]} 16. Nd5 {[%emt 0:00:01]} Nxd5 {[%emt 0:00:04]} 17. exd5 {[%emt 0:00:02]} Bg5+ {[%emt 0:00:12]} 18. Kb1 {[%emt 0:00:02]} a5 {[%emt 0:00:01]} 19. f6 {[%emt 0:00:27]} g6 {[%emt 0:00:23]} 20. h4 {[%emt 0:00:08]} Bf4 {[%emt 0:00:02]} 21. Nc1 {[%emt 0:00:07]} a4 {[%emt 0:00:50]} 22. Ne2 {[%emt 0:00:16]} a3 {[%emt 0:00:04]} 23. b3 {[%emt 0:01:09]} Rfc8 {[%emt 0:00:03]} 24. Bc4 {[%emt 0:00:05]} Ba6 {[%emt 0:00:29]} 25. Nxf4 {[%emt 0:00:28]} Bxc4 {[%emt 0:00:01]} 26. Rd2 {[%emt 0:00:12]} exf4 {[%emt 0:01:24]} 27. Qxf4 {[%emt 0:00:09]} Bxb3 {[%emt 0:00:13]} 28. cxb3 {[%emt 0:00:20]} Qc3 {[%emt 0:00:03]} 29. Rf1 {[%emt 0:01:04]} Kh8 {[%emt 0:00:54]} 30. g5 {[%emt 0:00:15]} Ra7 {[%emt 0:00:07]} 31. Qd4 {[%emt 0:00:13]} Rac7 {[%emt 0:00:26]} 32. Qxc3 {[%emt 0:00:08]} Rxc3 {[%emt 0:00:00]} 33. Re1 {[%emt 0:00:07]} h6 {[%emt 0:00:03]} 34. Rd4 {[%emt 0:00:05]} Rc2 {[%emt 0:00:01]} 35. Re8+ {[%emt 0:00:19]} Rxe8 {[%emt 0:00:05]} 36. Kxc2 {[%emt 0:00:01]} Re2+ {[%emt 0:00:04]} 37. Kd3 {[%emt 0:00:26]} Rxa2 {[%emt 0:00:01]} 38. Rxb4 {[%emt 0:00:01]} Rh2 {[%emt 0:00:13]} 39. Ra4 {[%emt 0:00:11]} a2 {[%emt 0:00:01]} 40. Ra8+ {[%emt 0:00:16]} Kh7 {[%emt 0:00:01]} 41. Ra7 {[%emt 0:00:01]} Rh3+ {[%emt 0:00:27]} 42. Kc2 {[%emt 0:00:24]} Rxh4 {[%emt 0:00:27]} 43. Rxf7+ {[%emt 0:00:08]} Kg8 {[%emt 0:00:01]} 44. Rg7+ {[%emt 0:00:02]} Kf8 {[%emt 0:00:00]} 45. Kb2 {[%emt 0:00:01]} Rh2+ {[%emt 0:00:03]} 46. Ka1 {[%emt 0:00:02]} hxg5 {[%emt 0:00:22]} 47. b4 {[%emt 0:00:02]} Rd2 {[%emt 0:00:11]} 48. b5 {[%emt 0:00:05]} Rxd5 {[%emt 0:00:28]} 49. b6 {[%emt 0:00:01]} Rb5 {[%emt 0:00:04]} 50. b7 {[%emt 0:00:00]} g4 {[%emt 0:00:01]} 51. Rc7 {[%emt 0:00:05]} g3 {[%emt 0:00:02]} 52. Rc8+ {[%emt 0:00:01]} Kf7 {[%emt 0:00:01]} 53. b8=Q {[%emt 0:00:01]} Rxb8 {[%emt 0:00:01]} 54. Rxb8 {[%emt 0:00:26]} g2 {[%emt 0:00:01]} 0-1

[Event "CCT Chessable Masters Play-In 2025"]
[Site "Online"]
[Date "2025.02.17"]
[Round "3.58"]
[White "Kozak, Adam"]
[Black "Bologan, Victor"]
[Result "0-1"]
[ECO "C26"]
[WhiteElo "2601"]
[BlackElo "2603"]
[PlyCount "88"]
[EventDate "2025.02.13"]
[EventType "swiss"]
[EventCountry "NET"]
[TimeControl "600"]
[WhiteClock "0:00:43"]
[BlackClock "0:01:34"]

1. e4 {[%emt 0:00:02]} e5 {[%emt 0:00:03]} 2. a3 {[%emt 0:00:01]} Nf6 {[%emt 0:00:04]} 3. Nc3 {[%emt 0:00:01]} c6 {[%emt 0:00:06]} 4. d4 {[%emt 0:00:03]} d6 {[%emt 0:00:04]} 5. Nf3 {[%emt 0:00:03]} Nbd7 {[%emt 0:00:02]} 6. Rg1 {[%emt 0:00:06]} g6 {[%emt 0:00:09]} 7. g4 {[%emt 0:00:02]} Bg7 {[%emt 0:00:01]} 8. Be3 {[%emt 0:00:06]} h5 {[%emt 0:00:04]} 9. h3 {[%emt 0:00:02]} hxg4 {[%emt 0:00:02]} 10. hxg4 {[%emt 0:00:00]} Qe7 {[%emt 0:00:07]} 11. g5 {[%emt 0:00:41]} Nh5 {[%emt 0:00:24]} 12. Qd2 {[%emt 0:00:02]} a6 {[%emt 0:00:49]} 13. O-O-O {[%emt 0:00:19]} b5 {[%emt 0:00:07]} 14. dxe5 {[%emt 0:00:09]} dxe5 {[%emt 0:00:06]} 15. Kb1 {[%emt 0:00:23]} Nf4 {[%emt 0:00:43]} 16. Nxe5 {[%emt 0:00:15]} Nxe5 {[%emt 0:00:08]} 17. Bc5 {[%emt 0:00:33]} Nf3 {[%emt 0:00:05]} 18. Qxf4 {[%emt 0:00:03]} Qxc5 {[%emt 0:00:04]} 19. Qxf3 {[%emt 0:00:01]} Be6 {[%emt 0:00:45]} 20. e5 {[%emt 0:00:05]} Rd8 {[%emt 0:01:07]} 21. Bd3 {[%emt 0:00:32]} Ke7 {[%emt 0:00:26]} 22. Be4 {[%emt 0:01:33]} Bxe5 {[%emt 0:00:24]} 23. Bxc6 {[%emt 0:00:04]} Rh3 {[%emt 0:00:19]} 24. Rxd8 {[%emt 0:00:18]} Kxd8 {[%emt 0:00:12]} 25. Qd1+ {[%emt 0:00:55]} Kc7 {[%emt 0:00:05]} 26. Bd5 {[%emt 0:00:01]} Bf5 {[%emt 0:00:10]} 27. Ne4 {[%emt 0:00:23]} Qd4 {[%emt 0:00:16]} 28. Qxd4 {[%emt 0:00:10]} Bxd4 {[%emt 0:00:01]} 29. Rd1 {[%emt 0:00:02]} Be5 {[%emt 0:00:07]} 30. Nc5 {[%emt 0:00:08]} Kb6 {[%emt 0:00:15]} 31. Nb3 {[%emt 0:00:21]} Rh2 {[%emt 0:00:09]} 32. Rd2 {[%emt 0:00:05]} Bf4 {[%emt 0:00:03]} 33. Re2 {[%emt 0:00:01]} Bxg5 {[%emt 0:00:12]} 34. Ka2 {[%emt 0:00:11]} Bh4 {[%emt 0:00:06]} 35. Bxf7 {[%emt 0:00:43]} Rxf2 {[%emt 0:00:03]} 36. Rxf2 {[%emt 0:00:00]} Bxf2 {[%emt 0:00:02]} 37. c3 {[%emt 0:00:01]} g5 {[%emt 0:00:03]} 38. Bd5 {[%emt 0:00:01]} g4 {[%emt 0:00:03]} 39. Nd2 {[%emt 0:00:01]} g3 {[%emt 0:00:03]} 40. b4 {[%emt 0:00:04]} Bh3 {[%emt 0:00:03]} 41. c4 {[%emt 0:00:02]} g2 {[%emt 0:00:08]} 42. Nf3 {[%emt 0:00:36]} bxc4 {[%emt 0:00:11]} 43. Kb2 {[%emt 0:00:02]} Bg4 {[%emt 0:00:03]} 44. Ng1 {[%emt 0:00:06]} Bxg1 {[%emt 0:00:02]} 0-1

[Event "CCT Chessable Masters Play-In 2025"]
[Site "Online"]
[Date "2025.02.17"]
[Round "3.59"]
[White "Munkhgal, Gombosuren"]
[Black "Kravtsiv, Martyn"]
[Result "0-1"]
[ECO "D02"]
[WhiteElo "2406"]
[BlackElo "2598"]
[PlyCount "62"]
[EventDate "2025.02.13"]
[EventType "swiss"]
[EventCountry "NET"]
[TimeControl "600"]
[WhiteClock "0:06:55"]
[BlackClock "0:04:52"]

1. d4 {[%emt 0:00:01]} d5 {[%emt 0:00:02]} 2. Bf4 {[%emt 0:00:00]} Nf6 {[%emt 0:00:04]} 3. e3 {[%emt 0:00:01]} e6 {[%emt 0:00:01]} 4. Nf3 {[%emt 0:00:01]} Bd6 {[%emt 0:00:01]} 5. Bg3 {[%emt 0:00:00]} O-O {[%emt 0:00:02]} 6. Nbd2 {[%emt 0:00:01]} c5 {[%emt 0:00:03]} 7. Bd3 {[%emt 0:00:00]} c4 {[%emt 0:00:26]} 8. Be2 {[%emt 0:00:04]} b5 {[%emt 0:00:17]} 9. c3 {[%emt 0:00:01]} Bb7 {[%emt 0:00:07]} 10. b3 {[%emt 0:00:14]} a6 {[%emt 0:00:29]} 11. bxc4 {[%emt 0:00:08]} dxc4 {[%emt 0:00:13]} 12. Rb1 {[%emt 0:00:01]} Ne4 {[%emt 0:00:47]} 13. Qc2 {[%emt 0:00:08]} Nxd2 {[%emt 0:00:01]} 14. Nxd2 {[%emt 0:00:07]} Bxg2 {[%emt 0:00:04]} 15. Rg1 {[%emt 0:00:01]} Bc6 {[%emt 0:00:02]} 16. e4 {[%emt 0:00:06]} Bxg3 {[%emt 0:00:06]} 17. Rxg3 {[%emt 0:00:01]} Qh4 {[%emt 0:00:14]} 18. Bf3 {[%emt 0:00:06]} Nd7 {[%emt 0:00:08]} 19. Ke2 {[%emt 0:00:02]} e5 {[%emt 0:00:39]} 20. Rbg1 {[%emt 0:00:10]} g6 {[%emt 0:00:03]} 21. d5 {[%emt 0:00:03]} Bb7 {[%emt 0:00:02]} 22. Nf1 {[%emt 0:00:04]} Nc5 {[%emt 0:00:11]} 23. Rg4 {[%emt 0:00:18]} Qh6 {[%emt 0:00:13]} 24. Ng3 {[%emt 0:00:03]} Kh8 {[%emt 0:00:04]} 25. h4 {[%emt 0:00:04]} Bc8 {[%emt 0:00:22]} 26. Nf1 {[%emt 0:00:26]} Bxg4 {[%emt 0:00:04]} 27. Rxg4 {[%emt 0:00:01]} Nd3 {[%emt 0:00:12]} 28. Ne3 {[%emt 0:00:10]} f5 {[%emt 0:00:01]} 29. exf5 {[%emt 0:00:05]} gxf5 {[%emt 0:00:02]} 30. Rg5 {[%emt 0:00:03]} Qxh4 {[%emt 0:00:05]} 31. Rg2 {[%emt 0:00:35]} e4 {[%emt 0:00:03]} 0-1

[Event "CCT Chessable Masters Play-In 2025"]
[Site "Online"]
[Date "2025.02.17"]
[Round "3.60"]
[White "Ma, Qun"]
[Black "Mikhalevski, Victor"]
[Result "1-0"]
[ECO "D85"]
[WhiteElo "2645"]
[BlackElo "2506"]
[PlyCount "93"]
[EventDate "2025.02.13"]
[EventType "swiss"]
[EventCountry "NET"]
[TimeControl "600"]
[WhiteClock "0:02:29"]

1. d4 {[%emt 0:00:01]} Nf6 {[%emt 0:00:02]} 2. c4 {[%emt 0:00:00]} g6 {[%emt 0:00:01]} 3. Nc3 {[%emt 0:00:02]} d5 {[%emt 0:00:01]} 4. cxd5 {[%emt 0:00:01]} Nxd5 {[%emt 0:00:01]} 5. e4 {[%emt 0:00:00]} Nxc3 {[%emt 0:00:01]} 6. bxc3 {[%emt 0:00:00]} Bg7 {[%emt 0:00:01]} 7. Bb5+ {[%emt 0:00:01]} c6 {[%emt 0:00:01]} 8. Ba4 {[%emt 0:00:01]} O-O {[%emt 0:00:02]} 9. Ne2 {[%emt 0:00:04]} c5 {[%emt 0:00:01]} 10. O-O {[%emt 0:00:04]} Nc6 {[%emt 0:00:02]} 11. Be3 {[%emt 0:00:16]} Bg4 {[%emt 0:00:09]} 12. d5 {[%emt 0:00:21]} Ne5 {[%emt 0:01:11]} 13. f3 {[%emt 0:00:04]} Bd7 {[%emt 0:00:03]} 14. Bxd7 {[%emt 0:00:16]} Nxd7 {[%emt 0:00:02]} 15. Rb1 {[%emt 0:00:01]} Qc7 {[%emt 0:00:18]} 16. c4 {[%emt 0:00:03]} e6 {[%emt 0:00:08]} 17. Qd2 {[%emt 0:00:10]} Rad8 {[%emt 0:00:11]} 18. Rfc1 {[%emt 0:00:06]} Ne5 {[%emt 0:00:11]} 19. h3 {[%emt 0:00:34]} b6 {[%emt 0:00:27]} 20. Rb3 {[%emt 0:00:18]} Qd7 {[%emt 0:00:17]} 21. Bg5 {[%emt 0:00:18]} f6 {[%emt 0:00:10]} 22. Bh4 {[%emt 0:00:16]} Rde8 {[%emt 0:00:25]} 23. Rc2 {[%emt 0:00:25]} Qa4 {[%emt 0:00:23]} 24. Qc1 {[%emt 0:00:17]} f5 {[%emt 0:00:44]} 25. f4 {[%emt 0:00:41]} Nf7 {[%emt 0:00:07]} 26. dxe6 {[%emt 0:00:29]} Rxe6 {[%emt 0:00:12]} 27. e5 {[%emt 0:00:01]} g5 {[%emt 0:00:05]} 28. Bg3 {[%emt 0:00:06]} gxf4 {[%emt 0:00:12]} 29. Nxf4 {[%emt 0:00:00]} Rxe5 {[%emt 0:00:02]} 30. Nh5 {[%emt 0:00:04]} Re6 {[%emt 0:00:41]} 31. Nxg7 {[%emt 0:00:08]} Kxg7 {[%emt 0:00:01]} 32. Rf2 {[%emt 0:00:05]} Nh8 {[%emt 0:00:49]} 33. Bf4 {[%emt 0:00:41]} Qe8 {[%emt 0:00:17]} 34. Kh2 {[%emt 0:00:15]} Rf7 {[%emt 0:00:20]} 35. Rg3+ {[%emt 0:00:08]} Ng6 {[%emt 0:00:03]} 36. h4 {[%emt 0:00:17]} h5 {[%emt 0:00:14]} 37. Rg5 {[%emt 0:00:08]} Re4 {[%emt 0:00:10]} 38. Qc3+ {[%emt 0:00:12]} Rf6 {[%emt 0:00:02]} 39. Rxf5 {[%emt 0:00:05]} Rd4 {[%emt 0:01:20]} 40. Rxf6 {[%emt 0:00:09]} Kxf6 {[%emt 0:00:03]} 41. Be5+ {[%emt 0:00:13]} Ke6 {[%emt 0:00:15]} 42. Bxd4 {[%emt 0:00:01]} Qb8+ {[%emt 0:00:05]} 43. g3 {[%emt 0:00:03]} cxd4 {[%emt 0:00:01]} 44. Qxd4 {[%emt 0:00:01]} Ne5 {[%emt 0:00:03]} 45. Re2 {[%emt 0:00:03]} Kf5 {[%emt 0:00:05]} 46. Qf4+ {[%emt 0:00:01]} Ke6 47. Qe4 {[%emt 0:00:01]} 1-0

[Event "CCT Chessable Masters Play-In 2025"]
[Site "Online"]
[Date "2025.02.17"]
[Round "3.61"]
[White "Cuenca Jimenez, Jose Fernando"]
[Black "Gholami Orimi, Mahdi"]
[Result "0-1"]
[ECO "D00"]
[WhiteElo "2479"]
[BlackElo "2509"]
[PlyCount "100"]
[EventDate "2025.02.13"]
[EventType "swiss"]
[EventCountry "NET"]
[TimeControl "600"]
[WhiteClock "0:00:09"]
[BlackClock "0:01:20"]

1. d4 {[%emt 0:00:01]} Nf6 {[%emt 0:00:02]} 2. Bf4 {[%emt 0:00:01]} d5 {[%emt 0:00:01]} 3. e3 {[%emt 0:00:01]} c5 {[%emt 0:00:01]} 4. dxc5 {[%emt 0:00:00]} Nc6 {[%emt 0:00:02]} 5. Bb5 {[%emt 0:00:01]} Qa5+ {[%emt 0:00:15]} 6. Nc3 {[%emt 0:00:03]} a6 {[%emt 0:00:03]} 7. Bxc6+ {[%emt 0:00:18]} bxc6 {[%emt 0:00:00]} 8. Nf3 {[%emt 0:00:07]} Ne4 {[%emt 0:00:26]} 9. Qd4 {[%emt 0:00:06]} Nxc3 {[%emt 0:00:02]} 10. Qxc3 {[%emt 0:00:00]} Qxc3+ {[%emt 0:00:01]} 11. bxc3 {[%emt 0:00:00]} f6 {[%emt 0:00:00]} 12. Bc7 {[%emt 0:00:00]} e5 {[%emt 0:00:12]} 13. Bb6 {[%emt 0:00:02]} g5 {[%emt 0:00:05]} 14. Nd2 {[%emt 0:00:09]} Bf5 {[%emt 0:00:11]} 15. O-O-O {[%emt 0:00:02]} h5 {[%emt 0:00:07]} 16. c4 {[%emt 0:00:10]} Be6 {[%emt 0:00:14]} 17. Rhe1 {[%emt 0:00:21]} Rh7 {[%emt 0:00:24]} 18. Nb3 {[%emt 0:00:59]} g4 {[%emt 0:00:39]} 19. Na5 {[%emt 0:00:05]} Rc8 {[%emt 0:00:04]} 20. Kb2 {[%emt 0:00:49]} h4 {[%emt 0:00:52]} 21. Kc3 {[%emt 0:00:06]} h3 {[%emt 0:00:04]} 22. g3 {[%emt 0:00:02]} f5 {[%emt 0:00:23]} 23. Kb4 {[%emt 0:00:42]} Rd7 {[%emt 0:00:34]} 24. cxd5 {[%emt 0:00:18]} Bxd5 {[%emt 0:00:03]} 25. Nc4 {[%emt 0:00:11]} Rb8 {[%emt 0:00:26]} 26. Kc3 {[%emt 0:01:11]} Ke7 {[%emt 0:00:11]} 27. a4 {[%emt 0:00:16]} Ke6 {[%emt 0:00:04]} 28. e4 {[%emt 0:00:31]} fxe4 {[%emt 0:00:04]} 29. Ne3 {[%emt 0:00:08]} Rf7 {[%emt 0:00:47]} 30. Nxg4 {[%emt 0:00:20]} Be7 {[%emt 0:00:01]} 31. Re2 {[%emt 0:00:19]} Rf3+ {[%emt 0:00:07]} 32. Re3 {[%emt 0:00:12]} Rf5 {[%emt 0:00:07]} 33. Re2 {[%emt 0:00:11]} Bg5 {[%emt 0:00:45]} 34. Kb4 {[%emt 0:00:08]} e3 {[%emt 0:00:03]} 35. Nxe3 {[%emt 0:00:13]} Bxe3 {[%emt 0:00:04]} 36. fxe3 {[%emt 0:00:29]} Rf3 {[%emt 0:00:41]} 37. e4 {[%emt 0:00:10]} a5+ {[%emt 0:00:04]} 38. Kxa5 {[%emt 0:00:04]} Bc4 {[%emt 0:00:01]} 39. Rd6+ {[%emt 0:00:05]} Ke7 {[%emt 0:00:06]} 40. Red2 {[%emt 0:00:01]} Re3 {[%emt 0:00:00]} 41. Rd7+ {[%emt 0:00:11]} Ke8 {[%emt 0:00:05]} 42. Rh7 {[%emt 0:00:06]} Ra8+ {[%emt 0:00:02]} 43. Kb4 {[%emt 0:00:01]} Rxe4 {[%emt 0:00:01]} 44. Rh8+ {[%emt 0:00:04]} Bg8+ {[%emt 0:00:01]} 45. Kc3 {[%emt 0:00:05]} Ke7 {[%emt 0:00:06]} 46. a5 {[%emt 0:00:02]} Rc4+ {[%emt 0:00:03]} 47. Kd3 {[%emt 0:00:03]} Ra4 {[%emt 0:00:01]} 48. Ke3 {[%emt 0:00:01]} Ra3+ {[%emt 0:00:03]} 49. Ke4 {[%emt 0:00:01]} Bd5+ {[%emt 0:00:01]} 50. Kxe5 {[%emt 0:00:25]} Rxh8 {[%emt 0:00:01]} 0-1